Cogmind - Beta 14 @@@ ROGUE MODE // 2024.10.20 @ 16:10:10 Player: Komeiji O. Result: Escaped! Performance ------------- Evolutions (9) 4500 Regions Visited (18) 3600 Robots Destroyed (143) 715 Value Destroyed (4103) 4103 Prototype IDs (28) 560 Alien Tech Used (0) 0 Bonus (4878) 4878 TOTAL SCORE: 18356 Bonus ------- High Alert Combat Kills 75 Follower Combat Kills 292 Met Warlord at Base 500 MAIN.C Attacked Warlord 500 Warlord Defense Kills 288 Hacked Protovariant 500 Win 3000 Friendly Fire -277 Cogmind --------- Core Integrity 1357/1600 Matter 125/300 Energy 129/200 System Corruption 1% Temperature Hot (255) Movement Flying (24) Location To Epsilon Eridani Parts ------- > --- POWER (2) -------- Micro Antimatter Reactor Micro Antimatter Reactor > --- PROPULSION (7) --- Field Propulsion Array Q-thruster Cooled Impulse Thruster Impulse Thruster Array Experimental Q-thruster > --- UTILITY (13) ----- Advanced Power Amplifier Spectral Analyzer Terrain Scanner Advanced Terrain Scan Processor ECM Suite Improved Reaction Control System Advanced Cloaking Device Layered Light Armor Plating Layered Light Armor Plating Hacking Suite Hacking Suite Improved Hacking Suite Advanced System Restoration Module > --- WEAPON (3) ------- Quantum Rifle Plasma Lance Plasma Lance > --- INVENTORY (5) ---- Experimental Q-thruster Experimental Q-thruster Enhanced Nova Cannon Micro-nuke Launcher Fusion Bomb Launcher Peak State ------------ > --- POWER ------------ Micro Antimatter Reactor Micro Antimatter Reactor > --- PROPULSION ------- Cooled Impulse Thruster Impulse Thruster Array Impulse Thruster Array Experimental Q-thruster Experimental Q-thruster > --- UTILITY ---------- Advanced Power Amplifier Spectral Analyzer Terrain Scanner Advanced Terrain Scan Processor ECM Suite Advanced ECM Suite Improved Reaction Control System Advanced Cloaking Device Layered Light Armor Plating Hacking Suite Hacking Suite Improved Hacking Suite Advanced System Restoration Module > --- WEAPON ----------- Enhanced Quantum Rifle Plasma Lance Plasma Lance > --- INVENTORY -------- Experimental Q-thruster Quantum Rifle Enhanced Nova Cannon Micro-nuke Launcher Fusion Bomb Launcher [Rating: 167] Favorites ----------- Power Micro Antimatter Reactor Engine Improved Ion Engine Power Core Light Nuclear Core Reactor Micro Antimatter Reactor Propulsion Improved VTOL Module Treads Light Treads Leg Aluminum Leg Wheel Wheel Hover Unit Improved Antigrav System Flight Unit Improved VTOL Module Utility Hacking Suite Device Seismic Detector Storage Large Storage Unit Processor Advanced Terrain Scan Processor Hackware Hacking Suite Protection Light Armor Plating Weapon Heavy EM Shotgun Energy Gun Heavy EM Shotgun Energy Cannon Beam Cannon Ballistic Gun Heavy Battle Rifle Launcher Shock Bomb Launcher Special Weapon Advanced Remote Datajack Impact Weapon Powered Hammer Piercing Weapon Plasma Lance Build | -11 -10 -10 -10 -9 -8 -8 -7 -6 -5 -5 -5 -5 -4 -4 -3 -2 -2 -1 ------- Run | Yrd Mat Min Exi Min Mat Sto Fac Fac Fac Upp Upp War Pro Fac Res Res Tes Acc Slots Evolved 18 | . . . . . 4 . 2 2 2 . . . . 2 2 2 . 2 Power 1 | . . . . . . . . . . . . . . 1 . . . . Propulsion 5 | . . . . . 1 . 1 1 . . . . . 1 . . . 1 Utility 11 | . . . . . 2 . 1 1 2 . . . . . 2 2 . 1 Weapon 1 | . . . . . 1 . . . . . . . . . . . . . Parts Attached 363 | 7 8 8 3 2 52 30 47 21 17 9 4 5 6 16 69 5 16 38 Power 34 | 1 3 1 . . 5 2 2 1 1 . . . . 4 11 . . 3 Engine 12 | 1 2 . . . 2 2 . 1 . . . . . 3 1 . . . Core 8 | . 1 1 . . 3 . 2 . 1 . . . . . . . . . Reactor 14 | . . . . . . . . . . . . . . 1 10 . . 3 Propulsion 72 | 2 2 3 . 1 8 12 7 3 1 4 1 1 1 3 12 . 5 6 Treads 13 | . . . . . 5 8 . . . . . . . . . . . . Leg 2 | . . . . . . 2 . . . . . . . . . . . . Wheel 11 | 2 2 3 . 1 3 . . . . . . . . . . . . . Hover 4 | . . . . . . . . . . . . . . . 4 . . . Flight 42 | . . . . . . 2 7 3 1 4 1 1 1 3 8 . 5 6 Utility 157 | 2 1 . 1 1 13 6 30 15 13 3 2 . 4 9 27 2 8 20 Device 111 | 1 . . . 1 7 2 22 15 11 2 2 . 4 7 18 . 5 14 Storage 10 | 1 1 . 1 . . . 2 . . 1 . . . . 3 . 1 . Processor 10 | . . . . . 1 . 3 . 1 . . . . 1 2 2 . . Hackware 7 | . . . . . . . 2 . 1 . . . . 1 2 . . 1 Protection 19 | . . . . . 5 4 1 . . . . . . . 2 . 2 5 Artifact . | . . . . . . . . . . . . . . . . . . . Weapon 100 | 2 2 4 2 . 26 10 8 2 2 2 1 4 1 . 19 3 3 9 Energy Gun 33 | . . 1 . . 16 6 2 . . 1 . . . . 2 1 1 3 Energy Cannon 7 | . 1 . . . 1 . . . . . . 2 . . 2 . 1 . Ballistic Gun 25 | 2 1 2 . . 4 . 3 2 1 1 1 2 1 . 5 . . . Ballistic Cannon . | . . . . . . . . . . . . . . . . . . . Launcher 15 | . . 1 1 . 4 3 1 . . . . . . . . 1 . 4 Special Weapon 1 | . . . . . . . . . . . . . . . 1 . . . Impact Weapon 7 | . . . 1 . 1 1 2 . 1 . . . . . 1 . . . Slashing Weapon . | . . . . . . . . . . . . . . . . . . . Piercing Weapon 12 | . . . . . . . . . . . . . . . 8 1 1 2 Special Melee Weapon . | . . . . . . . . . . . . . . . . . . . Unidentified Prototypes 16 | . . . . . 4 1 . . . . . 1 . 1 5 . 4 . Corrupted Parts 1 | . . . . . . . . . . . . . . . 1 . . . System Corruption 4 | . . . . . . . . . . . . . . . 4 . . . Parts Lost 81 | . 6 3 . . 8 14 5 . 6 3 1 1 4 1 21 . 2 6 Power 8 | . 2 . . . . 1 1 . 1 . . . 1 . 2 . . . Propulsion 30 | . 2 2 . . 4 5 3 . 1 2 . . 2 . 7 . 1 1 Utility 26 | . . . . . 1 3 . . 4 . . 1 1 . 10 . 1 5 Weapon 17 | . 2 1 . . 3 5 1 . . 1 1 . . 1 2 . . . Highest Loss Streak 6 | . 6 2 . . 3 3 5 . 3 2 1 1 2 1 6 . 2 3 To Critical Strikes . | . . . . . . . . . . . . . . . . . . . Average Slot Usage (%) 93 | . 98 98 100 100 94 88 97 99 92 97 100 99 94 94 82 90 89 88 Engine 2 | . 11 7 . . . 8 . 3 3 . . . . 7 1 . . . Core 3 | . 2 6 14 14 8 . 5 2 1 5 5 5 4 . . . . . Reactor 1 | . . . . . . . . . . . . . . 1 5 8 8 8 Treads 3 | . . . . . 9 12 . . . . . . . . . . . . Wheel 5 | . 26 26 28 28 12 . . . . . . . . . . . . . Flight 14 | . . . . . . 1 28 32 28 29 29 29 26 26 14 17 19 19 Device 15 | . 14 14 14 14 14 7 14 19 24 17 17 16 14 15 14 13 16 22 Storage 5 | . 14 14 14 14 9 9 1 . . 5 5 5 5 5 2 4 . . Processor 6 | . . . . . . 9 9 6 6 11 11 11 11 8 5 16 13 8 Hackware 7 | . . . . . . . 10 13 12 11 11 11 11 11 17 13 13 14 Protection 4 | . . . . . 11 10 . . . . . . . . 1 4 4 4 Energy Gun 7 | . . 6 14 14 21 9 . . . 4 5 2 . . . 1 3 3 Ballistic Gun 5 | . 23 7 6 . 2 2 12 13 6 3 5 8 11 9 3 . . . Launcher 1 | . . 1 . 14 2 4 . . . . . . . . . . . . Impact Weapon 3 | . . . 7 . 1 7 6 6 4 5 5 5 5 5 3 . . . Piercing Weapon 1 | . . . . . . . . . . . . . . . 2 11 7 7 Peak Build Rating 167 | 7 10 11 14 13 33 33 44 53 61 71 70 71 68 88 138 149 158 167 Average Rating 58 | 5 7 9 12 12 27 24 38 49 55 68 69 68 62 82 104 147 148 158 On Entrance 54 | . 7 8 11 12 13 33 25 42 53 60 68 69 63 57 84 138 149 148 Naked Turns . | . . . . . . . . . . . . . . . . . . . Heaviest Build 50 | 12 19 22 32 32 48 46 42 24 24 29 30 30 29 37 45 44 45 50 Greatest Support 62 | 32 32 26 20 22 62 62 60 24 27 35 35 35 35 40 50 45 45 55 Greatest Overweight (x) 4 | 2 1 1 1 1 4 3 1 . . . . . . 1 . . . . Average Overweight (x) . | . . . . 1 1 . . . . . . . . . . . . . Largest Inventory Capacity 15 | 8 10 10 15 15 15 15 15 5 5 8 8 8 8 8 8 5 5 5 Average Capacity 9 | 7 9 10 10 15 15 15 5 5 5 7 8 8 8 8 5 5 5 5 Most Carried 15 | 4 10 10 11 13 15 15 15 5 5 8 8 8 8 8 7 5 5 5 Average Carried 8 | 1 7 9 10 12 14 14 5 4 4 7 7 7 7 7 4 5 4 4 Final Capacity 15 | 8 10 10 15 15 15 15 5 5 5 8 8 8 8 8 5 5 5 5 Final Carried 15 | 4 10 10 11 13 15 15 5 5 5 6 7 8 8 8 5 5 4 5 Class Distribution -------------------- 19% | Hacker-Sprinter 17% | Scavenger-Mutant 13% | Scavenger-Tank 9% | Hacker-Mutant 8% | Hacker-Ninja 6% | Derelict-Mutant 6% | Mutant Dominant Class ---------------- Mutant | -10/Materials Mutant | -10/Mines Scavenger-Mutant | -10/Exiles Scavenger-Mutant | -9/Mines Scavenger-Tank | -8/Materials Scavenger-Mutant | -8/Storage Hacker-Sprinter | -7/Factory Hacker-Sprinter | -6/Factory Hacker-Sprinter | -5/Factory Hacker-Mutant | -5/Upper Caves Hacker-Mutant | -5/Upper Caves Derelict-Mutant | -5/Warlord Hacker-Mutant | -4/Proximity Caves Derelict-Sprinter | -4/Factory Hacker-Mutant | -3/Research Hacker-Sprinter | -2/Research Hacker-Sprinter | -2/Testing Hacker-Ninja | -1/Access Resources | -11 -10 -10 -10 -9 -8 -8 -7 -6 -5 -5 -5 -5 -4 -4 -3 -2 -2 -1 ----------- Run | Yrd Mat Min Exi Min Mat Sto Fac Fac Fac Upp Upp War Pro Fac Res Res Tes Acc Matter Collected 4719 | 229 434 160 20 30 561 495 435 125 284 131 199 123 17 193 558 38 379 308 Remotely . | . . . . . . . . . . . . . . . . . . . Salvage Created 6012 | 55 345 113 42 50 1455 1523 206 184 272 24 96 187 . 233 623 . 240 364 Parts 334 | 10 19 17 2 11 94 68 13 11 10 2 . 8 . 5 29 . 9 26 Haulers Intercepted 9 | . 1 . . . 6 1 . . . . . . . . 1 . . . Recyclers Shooed 8 | . 2 1 . . 1 1 . . . . . . . . 1 . . 2 Parts Field Recycled . | . . . . . . . . . . . . . . . . . . . Retrieved Matter . | . . . . . . . . . . . . . . . . . . . Parts Self-Destructed 1 | . . . . . . . . . . . . . 1 . . . . . Prevented . | . . . . . . . . . . . . . . . . . . . Kills | -11 -10 -10 -10 -9 -8 -8 -7 -6 -5 -5 -5 -5 -4 -4 -3 -2 -2 -1 ------- Run | Yrd Mat Min Exi Min Mat Sto Fac Fac Fac Upp Upp War Pro Fac Res Res Tes Acc Combat Hostiles Destroyed 90 | . 8 8 1 5 19 25 4 2 2 . . 3 . . 9 . . 4 Melee 10 | . . . 1 . . 5 . . . . . . . . 1 . . 3 Guns 44 | . 6 1 . . 12 9 3 2 2 . . 3 . . 6 . . . Cannons 7 | . 2 2 . . 1 . . . . . . . . . 2 . . . AOE 27 | . . 5 . 5 6 9 1 . . . . . . . . . . 1 Classes Destroyed 14 | 1 4 . . . 3 3 2 . . . . 1 . . . . . . Worker 12 | . 1 2 . . 2 4 . 1 . . . . . . . . . 2 Builder 9 | . . . . . 6 2 1 . . . . . . . . . . . Tunneler 7 | 3 . . . 1 . . 1 . 2 . . . . . . . . . Hauler 9 | . 1 . . . 6 1 . . . . . . . . 1 . . . Recycler 11 | . . . . . . 1 1 1 1 . . . . 2 1 . 2 2 Operator 2 | . . . . . . . 1 . . . . . . . 1 . . . Watcher 2 | . . . . . . 1 . . . . . . . . . . . 1 Swarmer 29 | . 3 6 . 5 3 2 3 2 . . . . . . 5 . . . Grunt 34 | . 5 2 1 . 8 17 . . . . . 1 . . . . . . Brawler 2 | . . . . . 2 . . . . . . . . . . . . . Duelist 1 | . . . . . . 1 . . . . . . . . . . . . Protector 2 | . . . . . . . . . . . . 2 . . . . . . Sentry 12 | . . . . . 6 6 . . . . . . . . . . . . Programmer 11 | . . . . . . . 1 . 2 . . . . . 4 . . 4 Decomposer 1 | . . . . . . . . . . 1 . . . . . . . . Best Kill Streak 8 | 2 5 8 1 4 7 6 3 3 2 . . 3 . 1 4 . 2 4 Combat Bots Only 6 | . 5 6 1 4 5 5 2 2 2 . . 3 . . 4 . . 1 Max Kills in Single Turn 3 | 1 1 3 1 2 3 2 1 2 1 1 . 1 . 1 2 . 1 2 Gunslinging 1 | . . . . . . . . . . . . . . . 1 . . . Exploded 2 | . . 2 . 2 1 1 1 . . . . . . . . . . 1 Melee 1 | . . . 1 . . 1 . . . . . . . . 1 . . 1 Uniques/NPCs Destroyed . | . . . . . . . . . . . . . . . . . . . Combat | -11 -10 -10 -10 -9 -8 -8 -7 -6 -5 -5 -5 -5 -4 -4 -3 -2 -2 -1 -------- Run | Yrd Mat Min Exi Min Mat Sto Fac Fac Fac Upp Upp War Pro Fac Res Res Tes Acc Hostile Shots Fired 960 | . 65 32 . 10 94 154 88 11 47 33 24 32 21 34 168 6 27 114 Missed 386 | . 16 5 . 1 18 45 36 6 24 22 19 20 11 23 71 4 12 53 Damage Taken 10205 | . 623 284 . 68 1245 1786 710 58 417 179 105 200 203 175 2291 54 334 1473 Core 1715 | . 150 60 . 6 146 293 241 . . 86 23 67 30 15 303 29 23 243 Absorbed by Shields 69 | . . . . . . . . 13 20 28 8 . . . . . . . Redirected to Shielding 71 | . . . . . 71 . . . . . . . . . . . . . Regen/Repaired (Parts) 215 | . . . . . . 65 . 56 21 . . 73 . . . . . . Core Remaining (%) 73 | 100 . . . 13 . 20 65 100 . . . . 79 98 76 . 96 84 Volleys Fired 290 | 11 41 12 1 8 54 63 27 3 9 6 . 11 . . 33 . 1 10 Largest 3 | 2 2 2 1 2 3 3 2 2 2 2 . 2 . . 3 . 1 1 Hottest 160 | 40 80 125 65 95 160 143 65 58 58 98 . 66 . . 118 . 65 94 Shots Fired 514 | 22 82 23 1 12 130 88 31 6 18 11 . 23 . . 56 . 1 10 Gun 433 | 22 72 7 1 8 118 71 26 6 18 11 . 23 . . 46 . 1 3 Cannon 32 | . 10 11 . . 1 . . . . . . . . . 10 . . . Launcher 49 | . . 5 . 4 11 17 5 . . . . . . . . . . 7 Special . | . . . . . . . . . . . . . . . . . . . Kinetic 228 | 22 72 5 . . 11 25 8 6 18 5 . 23 . . 33 . . . Thermal 95 | . 10 13 1 8 8 33 18 . . . . . . . . . 1 3 Explosive 25 | . . 5 . 4 . 4 5 . . . . . . . . . . 7 Electromagnetic 156 | . . . . . 111 26 . . . 6 . . . . 13 . . . Entropic 10 | . . . . . . . . . . . . . . . 10 . . . Robot Hit Streak 16 | 4 13 5 . 1 16 9 3 5 4 7 . 3 . . 8 . . 5 Robot Miss Streak 7 | 4 7 2 . 4 3 4 4 2 3 1 . 2 . . 4 . . 2 Penetration Max 2 | . . . . . . 1 . . 2 . . . . . 1 . . . Secondary Targets 3 | . . . . . 1 1 . . . . . . . . 1 . . . Max Gunslinging Chain 1 | . . . . . 1 1 . . . . . . . . 1 . . . Shots Hit Robots 365 | 10 52 9 1 1 90 77 15 4 15 7 3 12 . 2 53 . 2 12 Core Hits 243 | 4 21 13 1 9 62 58 11 7 6 3 2 11 . 1 17 . 2 15 Critical Kills 4 | . . . . . . 1 . . 1 . 1 1 . . . . . . Critical Parts Destroyed 16 | . 1 . . . . 6 1 . 1 1 1 2 . . 3 . . . Critical Strikes 23 | . 1 . . . . 8 1 . 2 1 2 3 . . 4 . . 1 Burn 1 | . . . . . . 1 . . . . . . . . . . . . Destroy 8 | . 1 . . . . 1 . . 2 1 . 3 . . . . . . Smash 12 | . . . . . . 6 1 . . . 2 . . . 3 . . . Impale 1 | . . . . . . . . . . . . . . . . . . 1 Sunder 1 | . . . . . . . . . . . . . . . 1 . . . Melee Attacks 257 | . . . 21 . 6 27 27 16 13 3 4 . 3 12 58 2 8 57 Impact 174 | . . . 21 . 6 27 27 16 13 3 4 . 3 12 42 . . . Slashing . | . . . . . . . . . . . . . . . . . . . Piercing 83 | . . . . . . . . . . . . . . . 16 2 8 57 Sneak Attacks 16 | . . . 1 . . 3 2 1 2 . . . . 2 2 . 2 1 Combat Hostiles 1 | . . . 1 . . . . . . . . . . . . . . . Follow-up Attacks 1 | . . . . . . . . . . . . . . . . . . 1 Damage Inflicted 13530 | 101 647 603 69 217 2529 2915 546 168 478 82 353 359 . 206 2020 . 225 2012 Guns 5179 | 101 527 28 . 13 1570 930 214 68 233 82 . 359 . . 1054 . . . Cannons 541 | . 120 71 . . 21 . . . . . . . . . 329 . . . Explosions 4290 | . . 504 . 204 938 1006 90 . . . . . . . . . . 1548 Melee 3520 | . . . 69 . . 979 242 100 245 . 353 . . 206 637 . 225 464 Ramming . | . . . . . . . . . . . . . . . . . . . Kinetic 2735 | 101 527 15 . . 95 379 78 68 233 20 . 359 . . 860 . . . Thermal 1378 | . 120 84 . 13 586 439 136 . . . . . . . . . . . Explosive 2619 | . . 504 . 204 . 273 90 . . . . . . . . . . 1548 Electromagnetic 2949 | . . . . . 1848 845 . . . 62 . . . . 194 . . . Impact 2779 | . . . 69 . . 979 242 100 245 . 353 . . 206 585 . . . Slashing . | . . . . . . . . . . . . . . . . . . . Piercing 741 | . . . . . . . . . . . . . . . 52 . 225 464 Entropic 329 | . . . . . . . . . . . . . . . 329 . . . Highest Corruption 13 | . . . . . . 1 . . 7 7 7 7 1 . 13 . . 4 Average Corruption 6 | . . . . . . 1 . . 5 7 7 2 1 . 10 . . 3 Corruption Purged 4 | . . . . . . . . . . . . . . . . . . 4 Corruption Blocked 1 | . . . . . . . 1 . . . . . . . . . . . Effects 54 | . . . . . . 4 . . 4 6 5 2 1 . 29 . . 3 Message Errors 8 | . . . . . . 1 . . 1 1 . . . . 5 . . . Matter Fused 14 | . . . . . . 2 . . 3 3 1 1 . . 4 . . . Heat Flow Errors 4 | . . . . . . . . . . . . . . . 3 . . 1 Energy Discharges 7 | . . . . . . . . . . 1 . . . . 4 . . 2 Parts Rejected 2 | . . . . . . . . . . . 1 . 1 . . . . . Data Loss (minor) 10 | . . . . . . 1 . . . 1 1 . . . 7 . . . Data Loss (major) 1 | . . . . . . . . . . . . . . . 1 . . . Misfires 1 | . . . . . . . . . . . . 1 . . . . . . Alerts 3 | . . . . . . . . . . . 2 . . . 1 . . . Misdirections 3 | . . . . . . . . . . . . . . . 3 . . . Weapon Failures 1 | . . . . . . . . . . . . . . . 1 . . . Overload Shots . | . . . . . . . . . . . . . . . . . . . Overflow Damage 1377 | . . 31 . . 12 412 187 . 90 . 122 . . 33 349 . . 141 Projectiles 85 | . . . . . . . . . . . . . . . 85 . . . Explosions 206 | . . 31 . . 12 22 . . . . . . . . . . . 141 Melee 1086 | . . . . . . 390 187 . 90 . 122 . . 33 264 . . . Knockbacks 8 | . . . . . . 2 3 . 1 . . . . 1 1 . . . Impact 8 | . . . . . . 2 3 . 1 . . . . 1 1 . . . Kinetic . | . . . . . . . . . . . . . . . . . . . Secondary . | . . . . . . . . . . . . . . . . . . . Self-Inflicted Damage 314 | . . . . . 119 105 . . . . . . . . . . . 90 Shots 13 | . . . . . 5 5 . . . . . . . . . . . 3 Rammed . | . . . . . . . . . . . . . . . . . . . Targets Rammed . | . . . . . . . . . . . . . . . . . . . Kicked . | . . . . . . . . . . . . . . . . . . . Crushed . | . . . . . . . . . . . . . . . . . . . Highest Temperature 396 | . 178 150 28 99 396 308 202 1 2 86 . 48 . 27 346 . 196 300 Average Temperature 67 | . 38 69 18 42 100 106 98 1 2 36 . 13 . 10 72 . 61 66 Received Heat Transfer 2036 | . 348 84 . . 540 702 24 . 39 81 16 69 . . 115 . 18 . Effects 9 | . . . . . 7 . . . . . . . . . 2 . . . Shutdowns 2 | . . . . . . . . . . . . . . . 2 . . . Interference 7 | . . . . . 7 . . . . . . . . . . . . . Siege Activations . | . . . . . . . . . . . . . . . . . . . Robots Corrupted 13 | . . . . . 1 4 3 . 1 . . . . 1 3 . . . Combat Hostiles 2 | . . . . . . 2 . . . . . . . . . . . . Parts Fried 44 | . . . . . 17 12 2 . 2 1 . . . 3 7 . . . Impact Corruptions 37 | . . . . . . 12 8 . 3 . 1 . . 2 11 . . . Robots Melted . | . . . . . . . . . . . . . . . . . . . Combat Hostiles . | . . . . . . . . . . . . . . . . . . . Parts Melted 6 | . . . . . . . 1 . . . . 5 . . . . . . Heat Transferred 2600 | . 259 185 . 37 872 914 333 . . . . . . . . . . . Parts Sabotaged . | . . . . . . . . . . . . . . . . . . . Parts Stolen . | . . . . . . . . . . . . . . . . . . . Parts Stripped . | . . . . . . . . . . . . . . . . . . . Power Chain Reactions 12 | . . . . . 10 2 . . . . . . . . . . . . Alert | -11 -10 -10 -10 -9 -8 -8 -7 -6 -5 -5 -5 -5 -4 -4 -3 -2 -2 -1 ------- Run | Yrd Mat Min Exi Min Mat Sto Fac Fac Fac Upp Upp War Pro Fac Res Res Tes Acc Peak Influence 854 | 15 272 320 . 187 417 511 160 230 366 . . . . 199 509 203 489 854 Initial 292 | . 9 55 . . 72 31 128 17 112 . . . . . 104 167 111 292 Average 196 | 5 133 264 . 95 198 299 61 92 170 . . . . 49 164 173 212 464 Maximum Alert Level 3 | . 1 1 . . 2 2 . 1 1 . . . . . 2 1 2 3 Low Security (%) 59 | 100 70 5 . 100 58 12 100 94 70 . . . . 100 75 99 66 . Level 1 32 | . 29 94 . . 39 66 . 5 29 . . . . . 20 . 27 54 Level 2 5 | . . . . . 2 20 . . . . . . . . 3 . 6 21 Level 3 2 | . . . . . . . . . . . . . . . . . . 24 Level 4 . | . . . . . . . . . . . . . . . . . . . Level 5 . | . . . . . . . . . . . . . . . . . . . High Security . | . . . . . . . . . . . . . . . . . . . Max Security . | . . . . . . . . . . . . . . . . . . . Squads Dispatched 38 | . 1 . . . 5 10 3 1 3 . 1 . . . 5 . 6 3 Investigation 8 | . 1 . . . . 1 1 . 1 . . . . . 3 . 1 . Extermination 7 | . . . . . . . 1 1 1 . . . . . 2 . 1 1 Reinforcement 12 | . . . . . 2 3 1 . 1 . . . . . . . 3 2 Assault 2 | . . . . . . . . . . . 1 . . . . . 1 . Garrison 9 | . . . . . 3 6 . . . . . . . . . . . . Intercept . | . . . . . . . . . . . . . . . . . . . Searches Triggered 1 | . . . . . . . . . . . . . . . 1 . . . Construction Impeded 2 | . . . . . 1 1 . . . . . . . . . . . . Haulers Reinforced 1 | . . . . . . . . . . . . . . . . . 1 . Active Scanning Responses . | . . . . . . . . . . . . . . . . . . . Cargo Convoy Interrupts . | . . . . . . . . . . . . . . . . . . . Stealth | -11 -10 -10 -10 -9 -8 -8 -7 -6 -5 -5 -5 -5 -4 -4 -3 -2 -2 -1 --------- Run | Yrd Mat Min Exi Min Mat Sto Fac Fac Fac Upp Upp War Pro Fac Res Res Tes Acc Distress Signals 19 | . 2 . . . . 5 . 2 4 . . . . 1 4 . . 1 Communications Jammed 28 | . . . . . . . . . . . . . . 16 10 . 2 . Distress Signals 28 | . . . . . . . . . . . . . . 16 10 . 2 . Times Spotted 415 | . 16 12 . 7 37 40 17 20 31 23 17 36 10 19 81 4 20 25 Peak Tracking Total 15 | . 4 6 . 4 7 6 4 8 10 9 12 13 5 11 15 2 11 10 Tactical Retreats 74 | . 2 1 . . 9 2 3 6 8 4 4 . 2 2 19 . 5 7 Traps | -11 -10 -10 -10 -9 -8 -8 -7 -6 -5 -5 -5 -5 -4 -4 -3 -2 -2 -1 ------- Run | Yrd Mat Min Exi Min Mat Sto Fac Fac Fac Upp Upp War Pro Fac Res Res Tes Acc Traps Triggered 8 | . . . . . . 1 . 1 2 . . . . 1 1 . . 2 Indirectly . | . . . . . . . . . . . . . . . . . . . Trap Hack Attempts . | . . . . . . . . . . . . . . . . . . . Triggered . | . . . . . . . . . . . . . . . . . . . Disarmed . | . . . . . . . . . . . . . . . . . . . Reprogrammed . | . . . . . . . . . . . . . . . . . . . Reused . | . . . . . . . . . . . . . . . . . . . Traps Extracted . | . . . . . . . . . . . . . . . . . . . Installed . | . . . . . . . . . . . . . . . . . . . Triggered 10 | . . . . . . . . . . . . 10 . . . . . . Machines | -11 -10 -10 -10 -9 -8 -8 -7 -6 -5 -5 -5 -5 -4 -4 -3 -2 -2 -1 ---------- Run | Yrd Mat Min Exi Min Mat Sto Fac Fac Fac Upp Upp War Pro Fac Res Res Tes Acc Machines Disabled 13 | . 1 1 . . 4 1 . . . . . . . . . . 2 4 Max in Single Turn 3 | . 1 1 . . 1 1 . . . . . . . . . . 1 3 Garrison Access 11 | . . . . . . 1 2 . 2 . . . . . 2 1 1 2 Energy Cycler 1 | . . . . . . . . . . . . . . . . . . 1 Machines Repaired . | . . . . . . . . . . . . . . . . . . . Machines Dismantled . | . . . . . . . . . . . . . . . . . . . Machines Sabotaged . | . . . . . . . . . . . . . . . . . . . Overloaded Fab Kills . | . . . . . . . . . . . . . . . . . . . Hacking | -11 -10 -10 -10 -9 -8 -8 -7 -6 -5 -5 -5 -5 -4 -4 -3 -2 -2 -1 --------- Run | Yrd Mat Min Exi Min Mat Sto Fac Fac Fac Upp Upp War Pro Fac Res Res Tes Acc Machines Accessed 117 | . 4 . 1 . 6 7 19 12 11 1 . 11 . 11 15 2 8 9 Terminals 66 | . 2 . . . 6 5 11 8 3 . . . . 8 10 1 6 6 Fabricators 14 | . . . . . . . 3 1 3 . . . . 3 3 . 1 . Repair Stations 7 | . . . . . . 1 . 3 2 . . . . . . . . 1 Recycling Units 6 | . 2 . . . . . 3 . 1 . . . . . . . . . Scanalyzers . | . . . . . . . . . . . . . . . . . . . Garrison Access 11 | . . . . . . 1 2 . 2 . . . . . 2 1 1 2 Total Hacks 330 | . 13 . 1 . 16 15 62 38 31 1 . 15 . 29 44 7 33 25 Successful 182 | . 5 . 1 . 7 8 33 20 17 1 . 15 . 18 21 4 18 14 Failed 148 | . 8 . . . 9 7 29 18 14 . . . . 11 23 3 15 11 Catastrophic 24 | . 1 . . . 1 . 10 2 2 . . . . 2 5 . 1 . Database Lockouts . | . . . . . . . . . . . . . . . . . . . Manual 166 | . 11 . . . 11 8 37 17 10 . . . . 17 23 4 19 9 Terminals 226 | . 5 . . . 16 11 45 29 11 . . . . 23 31 6 28 21 Fabricators 36 | . . . . . . . 6 3 7 . . . . 6 11 . 3 . Repair Stations 15 | . . . . . . 2 . 6 6 . . . . . . . . 1 Recycling Units 19 | . 8 . . . . . 8 . 3 . . . . . . . . . Scanalyzers . | . . . . . . . . . . . . . . . . . . . Garrison Access 17 | . . . . . . 2 3 . 4 . . . . . 2 1 2 3 Terminal Hacks 79 | . 1 . 1 . 6 4 15 7 2 1 . 15 . 9 6 1 6 5 Record 11 | . . . 1 . . . . . . . . 9 . 1 . . . . Part Schematic 2 | . . . . . . . 2 . . . . . . . . . . . Robot Analysis 1 | . . . . . . . . . . . . . . . . . 1 . Prototype ID Bank 5 | . . . . . . . . . . . . 4 . 1 . . . . Open Door 3 | . . . . . . . . . . 1 . 2 . . . . . . Level Access Points 5 | . . . . . . . 1 1 . . . . . 1 . . 1 1 Branch Access Points 4 | . . . . . 1 . 1 1 . . . . . . . 1 . . Terminal Index 2 | . . . . . . . . . . . . . . . 1 . . 1 Fabricator Index 1 | . . . . . . . . . . . . . . 1 . . . . Repair Station Index 1 | . . . . . . . . 1 . . . . . . . . . . Alert Level 11 | . . . . . 2 2 3 2 . . . . . 1 1 . . . Unreport Threat 8 | . 1 . . . 2 1 2 . . . . . . . 2 . . . Locate Traps 6 | . . . . . . . 2 2 . . . . . . . . 1 1 Dispatch Records 3 | . . . . . . . 1 . . . . . . . . . 2 . Security Status 2 | . . . . . 1 . . . . . . . . . 1 . . . Patrol Status 3 | . . . . . . . . . . . . . . 1 . . . 2 Transport Status 1 | . . . . . . . . . 1 . . . . . . . . . Recall Extermination 1 | . . . . . . . 1 . . . . . . . . . . . Recall Reinforcements 2 | . . . . . . . 1 . 1 . . . . . . . . . Hauler Manifests 3 | . . . . . . 1 . . . . . . . 1 1 . . . Zone Layout 3 | . . . . . . . 1 . . . . . . 2 . . . . Protovariant Controls 1 | . . . . . . . . . . . . . . . . . 1 . Fabricator Hacks 14 | . . . . . . . 4 . 3 . . . . 1 4 . 2 . Network Status 10 | . . . . . . . 2 . 3 . . . . 1 3 . 1 . Build 4 | . . . . . . . 2 . . . . . . . 1 . 1 . Repair Station Hacks 11 | . . . . . . 2 . 6 3 . . . . . . . . . Scan Component 6 | . . . . . . 1 . 3 2 . . . . . . . . . Repair 5 | . . . . . . 1 . 3 1 . . . . . . . . . Recycling Unit Hacks 5 | . . . . . . . 2 . 3 . . . . . . . . . Process 1 | . . . . . . . . . 1 . . . . . . . . . Report Inventory 3 | . . . . . . . 2 . 1 . . . . . . . . . Retrieve Matter 1 | . . . . . . . . . 1 . . . . . . . . . Scanalyzer . | . . . . . . . . . . . . . . . . . . . Garrison Access Hacks 11 | . . . . . . 1 2 . 2 . . . . . 2 1 1 2 Seal Access 11 | . . . . . . 1 2 . 2 . . . . . 2 1 1 2 Unauthorized Hacks 58 | . . . . . 1 1 10 7 4 . . . . 8 9 2 9 7 Terminals 47 | . . . . . 1 1 6 7 2 . . . . 5 8 2 8 7 Track 14 | . . . . . . . . . . . . . . 1 5 1 3 4 Assimilate 6 | . . . . . . . . 3 1 . . . . 1 . . 1 . Botnet 26 | . . . . . 1 1 5 4 1 . . . . 3 3 1 4 3 Operators 1 | . . . . . . . 1 . . . . . . . . . . . Fabricators 8 | . . . . . . . 1 . 2 . . . . 3 1 . 1 . Fabnet 8 | . . . . . . . 1 . 2 . . . . 3 1 . 1 . Repair Stations . | . . . . . . . . . . . . . . . . . . . Recycling Units 3 | . . . . . . . 3 . . . . . . . . . . . Mask 3 | . . . . . . . 3 . . . . . . . . . . . Scanalyzers . | . . . . . . . . . . . . . . . . . . . Garrison Access . | . . . . . . . . . . . . . . . . . . . Data Cores Recovered 1 | . . . . . . . . . . . . . . . 1 . . . Used . | . . . . . . . . . . . . . . . . . . . Hacking Detections 87 | . 4 . . . 6 6 15 10 6 . . . . 10 14 1 7 8 Full Trace Events 8 | . 1 . . . . 2 1 . 1 . . . . . 3 . . . Feedback Events 1 | . . . . . . . . . . . . . . . 1 . . . Hackware Fried 1 | . . . . . . . . . . . . . . . 1 . . . Feedback Blocked . | . . . . . . . . . . . . . . . . . . . Robot Schematics Acquired . | . . . . . . . . . . . . . . . . . . . Robots Built 3 | . . . . . . . . . . . . . . . 3 . . . Authchips . | . . . . . . . . . . . . . . . . . . . Time 84 | . . . . . . . . . . . . . . . 84 . . . Total Robot Build Rating 18 | . . . . . . . . . . . . . . . 18 . . . Part Schematics Acquired 4 | . . . . . . . 2 . . . . . . . . . 2 . Parts Built 4 | . . . . . . . 4 . . . . . . . . . . . Authchips . | . . . . . . . . . . . . . . . . . . . Time 220 | . . . . . . . 81 . . . . . . . . . 139 . Total Part Build Rating 20 | . . . . . . . 20 . . . . . . . . . . . Parts Repaired 5 | . . . . . . 1 . 3 1 . . . . . . . . . Time 168 | . . . . . . 36 . 88 44 . . . . . . . . . Parts Recycled . | . . . . . . . . . . . . . . . . . . . Recycled Matter 6 | . . . . . . . . . 6 . . . . . . . . . Retrieved Matter 6 | . . . . . . . . . 6 . . . . . . . . . Retrieved Components . | . . . . . . . . . . . . . . . . . . . Parts Scanalyzed . | . . . . . . . . . . . . . . . . . . . Part Schematics Acquired . | . . . . . . . . . . . . . . . . . . . Parts Damaged . | . . . . . . . . . . . . . . . . . . . Bothacking | -11 -10 -10 -10 -9 -8 -8 -7 -6 -5 -5 -5 -5 -4 -4 -3 -2 -2 -1 ------------ Run | Yrd Mat Min Exi Min Mat Sto Fac Fac Fac Upp Upp War Pro Fac Res Res Tes Acc Used RIF Installer . | . . . . . . . . . . . . . . . . . . . Robots Hacked 7 | . . . . . . . . 1 . . . . . 2 1 1 2 . Non-combat . | . . . . . . . . . . . . . . . . . . . Combat 7 | . . . . . . . . 1 . . . . . 2 1 1 2 . Robot Hacks Applied . | . . . . . . . . . . . . . . . . . . . Relay Couplers Released 3 | . . . . . . . . . 3 . . . . . . . . . Machine Destruction 3 | . . . . . . . . . 3 . . . . . . . . . Fabnet Peak Effective % 11 | . . . . . . . . 3 1 1 1 1 6 6 11 6 6 1 Autooverrided 7 | . . . . . . . . 1 . . . . . 2 1 1 2 . Robots Rewired 3 | . . . 3 . . . . . . . . . . . . . . . Allies Hacked . | . . . . . . . . . . . . . . . . . . . Hacks Repelled 2 | . . . . . . . . . 2 . . . . . . . . . Allies | -11 -10 -10 -10 -9 -8 -8 -7 -6 -5 -5 -5 -5 -4 -4 -3 -2 -2 -1 -------- Run | Yrd Mat Min Exi Min Mat Sto Fac Fac Fac Upp Upp War Pro Fac Res Res Tes Acc Total Allies 28 | . . . 3 . . 10 . 3 1 . . . . 3 4 1 3 . Largest Group 10 | . . . 3 3 2 10 1 1 1 . . . . 1 4 . 2 . Highest-Rated Group 173 | . . . 37 37 29 173 16 26 26 . . . . 116 100 . 82 . Highest-Rated Ally 116 | . . . 21 21 21 29 16 26 26 . . . . 116 47 . 82 . Total Orders 16 | . . . . . . . . . . . . . . . 8 . . 8 STAY 1 | . . . . . . . . . . . . . . . 1 . . . ROAM 1 | . . . . . . . . . . . . . . . . . . 1 FOLLOW 2 | . . . . . . . . . . . . . . . 1 . . 1 EXPLORE 6 | . . . . . . . . . . . . . . . 3 . . 3 RETURN 6 | . . . . . . . . . . . . . . . 3 . . 3 Ally Attacks 98 | . . . . 7 3 72 . 2 . . . . . 4 4 . 6 . Total Damage 1606 | . . . . 69 44 824 . . . . . . . 114 73 . 482 . Kills 17 | . . . . 2 1 9 . . . . . . . 2 1 . 2 . Allies Corrupted . | . . . . . . . . . . . . . . . . . . . Allies Melted . | . . . . . . . . . . . . . . . . . . . Intel | -11 -10 -10 -10 -9 -8 -8 -7 -6 -5 -5 -5 -5 -4 -4 -3 -2 -2 -1 ------- Run | Yrd Mat Min Exi Min Mat Sto Fac Fac Fac Upp Upp War Pro Fac Res Res Tes Acc Robot Analysis Total 1 | . . . . . . . . . . . . . . . . . 1 . Derelict Logs Recovered 5 | . . . . . . . . . . 1 1 . 3 . . . . . Drone Launches 9 | . . . . . . . . . . . . . . . 3 . . 6 Drone Recoveries 8 | . . . . . . . . . . . . . . . 3 . . 5 Decoded 0b10 Intel 9 | . . . . . . . . . . . . . . 9 . . . . Traps 1 | . . . . . . . . . . . . . . 1 . . . . Emergency Access 1 | . . . . . . . . . . . . . . 1 . . . . Items 6 | . . . . . . . . . . . . . . 6 . . . . Machines 1 | . . . . . . . . . . . . . . 1 . . . . Exploration | -11 -10 -10 -10 -9 -8 -8 -7 -6 -5 -5 -5 -5 -4 -4 -3 -2 -2 -1 ------------- Run | Yrd Mat Min Exi Min Mat Sto Fac Fac Fac Upp Upp War Pro Fac Res Res Tes Acc Turns Passed 10872 | 120 392 254 501 169 2025 1272 936 610 512 215 168 583 144 564 1063 121 357 866 Spaces Moved 14952 | 76 245 177 478 143 1141 407 1610 1394 1032 506 385 1165 339 853 1702 345 1039 1915 Core 4 | 4 . . . . . . . . . . . . . . . . . . Treads 664 | . . . . . 301 353 10 . . . . . . . . . . . Legs 54 | . . . . . . 54 . . . . . . . . . . . . Wheels 1955 | 72 245 177 478 143 840 . . . . . . . . . . . . . Hover 152 | . . . . . . . . . . . . . . . 152 . . . Flight 12123 | . . . . . . . 1600 1394 1032 506 385 1165 339 853 1550 345 1039 1915 Fastest Speed 20 | 50 90 80 80 95 98 152 26 24 24 29 36 36 36 28 28 32 23 20 Average Speed 46 | 99 95 89 86 98 125 226 27 24 25 34 38 38 36 29 33 32 26 25 Slowest Speed 330 | 150 115 115 95 100 155 330 160 24 29 36 42 42 42 106 56 32 32 33 Overloaded Moves 5 | . . . . . . . . . . . . . . . . . 5 . Propulsion Burnouts . | . . . . . . . . . . . . . . . . . . . Robots Hopped 98 | . . . . . . . 11 10 8 2 . . 1 10 14 2 23 17 Cave-ins Triggered . | . . . . . . . . . . . . . . . . . . . Exploration Rate (%) 44 | 4 46 23 89 24 69 59 41 35 24 66 53 95 53 19 45 10 50 48 Regions Visited 18 Branch Regions 9 Pre-discovered Areas . | . . . . . . . . . . . . . . . . . . . Known Exits Taken 9 | . . . . . 1 1 1 1 . . . . 1 1 1 1 1 . Unknown Exits Taken 9 | 1 1 1 1 1 . . . . 1 1 1 1 . . . . . . Scrap Searched 12 | . . 2 . 1 . . . . . 4 3 . 2 . . . . . Spaces Dug 160 | . . . . . 8 . 24 15 10 3 . . 3 10 32 1 3 51 Terrain Destroyed 405 | . . 35 . 24 39 44 30 15 10 3 . . 3 10 44 1 3 144 Melee 140 | . . . . . 6 . 24 15 10 3 . . 3 10 32 1 3 33 Projectile 13 | . . . . . 1 . . . . . . . . . 12 . . . AOE 252 | . . 35 . 24 32 44 6 . . . . . . . . . . 111 Terrain Rammed . | . . . . . . . . . . . . . . . . . . . Walls Destroyed . | . . . . . . . . . . . . . . . . . . . Machines Disabled . | . . . . . . . . . . . . . . . . . . . Actions | -11 -10 -10 -10 -9 -8 -8 -7 -6 -5 -5 -5 -5 -4 -4 -3 -2 -2 -1 --------- Run | Yrd Mat Min Exi Min Mat Sto Fac Fac Fac Upp Upp War Pro Fac Res Res Tes Acc Total 17849 | 97 326 250 542 158 1625 642 2028 1618 1232 527 394 1275 349 1128 2028 349 1091 2190 Wait 1735 | . 25 46 2 6 305 100 276 169 146 . . 89 . 246 141 . 31 153 Move 14749 | 75 244 176 477 142 1140 406 1588 1373 1015 501 384 1164 336 832 1675 340 1001 1880 Hop 86 | . . . . . . . 10 10 8 2 . . 1 10 12 2 14 17 Pick Up 137 | 4 8 4 4 . 30 7 21 5 5 5 2 2 2 4 17 . 6 11 Fast Attach 105 | 7 2 1 . . 10 14 8 4 3 1 1 1 2 5 23 3 10 10 Attach 70 | . 4 2 . . 7 1 7 3 6 4 1 . 2 1 19 . 5 8 Detach 24 | . . . . . 2 . 3 . 3 . . 1 . 2 7 . 2 4 Swap 189 | . 2 5 3 2 35 15 32 14 8 4 2 4 2 11 27 2 1 20 Drop 148 | . . 4 4 . 36 9 29 5 1 1 . 2 1 5 22 1 14 14 Fire 290 | 11 41 12 1 8 54 63 27 3 9 6 . 11 . . 33 . 1 10 Melee 236 | . . . 21 . 6 27 27 16 13 3 4 . 3 12 52 1 6 45 Ram . | . . . . . . . . . . . . . . . . . . . Kick . | . . . . . . . . . . . . . . . . . . . Crush . | . . . . . . . . . . . . . . . . . . . Escape Stasis 49 | . . . . . . . . 16 15 . . . . . . . . 18 Rewire 31 | . . . 30 . . . . . . . . 1 . . . . . . Trap . | . . . . . . . . . . . . . . . . . . . Miscellaneous . | . . . . . . . . . . . . . . . . . . . Route ------- -11/Scrapyard -10/Materials (discovered 2 exits: [*Min x2]) -10/Mines (discovered 3 exits: [*Mat x2] / *Exi) -10/Exiles -9/Mines -8/Materials (discovered 4 exits: *Fac x2 / *Sto x2) -8/Storage -7/Factory (discovered 6 exits: *Fac x4 / Low x2) -6/Factory (discovered 6 exits: *Fac x4 / *Low x2) -5/Factory (discovered 2 exits: *Upp / [*Ext]) -5/Upper Caves -5/Upper Caves (discovered 2 exits: *Fac / *War) -5/Warlord -4/Proximity Caves -4/Factory (discovered 5 exits: *Res x4 / [Arm]) -3/Research (discovered 2 exits: *Res x2) -2/Research (discovered 2 exits: *Tes x2) -2/Testing -1/Access To Epsilon Eridani History --------- Turn | Location | Event 20 | -11/Scrapyard | Discovered new exit (range 15) 121 | -11/Scrapyard | Entered Materials 313 | -10/Materials | Discovered new exit (range 15) 319 | -10/Materials | Build established: Mutant 395 | -10/Materials | Core integrity fell below 50% 429 | -10/Materials | Lost 6 parts (2p2n2w) 435 | -10/Materials | Discovered new exit (range 11) 513 | -10/Materials | Entered Mines 515 | -10/Mines | Discovered new exit (range 11) 550 | -10/Mines | Met a Derelict bent on vengeance 585 | -10/Mines | Discovered new exit (range 15) 601 | -10/Mines | Deemed a non-threat by the Exiles lab entrance 601 | -10/Mines | Discovered new exit (range 5) 744 | -10/Mines | Core integrity fell below 20% 767 | -10/Mines | Entered Exiles 767 | -10/Exiles | Found Exiles lab destroyed 956 | -10/Exiles | Build established: Scavenger-Mutant 1249 | -10/Exiles | Discovered new exit (range 10) 1268 | -10/Exiles | Entered Mines 1268 | -9/Mines | Accompanied by 3 allies 1298 | -9/Mines | Discovered new exit (range 5) 1437 | -9/Mines | Entered Materials 1437 | -8/Materials | Accompanied by 2 allies 1437 | -8/Materials | Evolved 4 slots: Propulsion x1, Utility x2, Weapon x1 1933 | -8/Materials | Build established: Scavenger-Tank 2036 | -8/Materials | Discovered new exit (range 13) 2224 | -8/Materials | Lost 3 parts (2n1w) 2677 | -8/Materials | Discovered new exit (range 3) 2788 | -8/Materials | Identified exit to Storage 3166 | -8/Materials | Garrison activated, responded to threat 3274 | -8/Materials | Discovered new exit (range 16) 3349 | -8/Materials | Identified exit to Factory 3462 | -8/Materials | Entered Storage 3629 | -8/Storage | Garrison activated, responded to threat 3657 | -8/Storage | Core integrity fell below 50% 3658 | -8/Storage | Lost 3 parts (1n2w) 3859 | -8/Storage | Lost 3 parts (1p1n1w) 3922 | -8/Storage | Build established: Scavenger-Mutant 4224 | -8/Storage | Assisted by bots powering up and referring to "LRC-V3" 4394 | -8/Storage | Lost 5 allies 4510 | -8/Storage | Repaired Corrupted Lgt. Treads 4634 | -8/Storage | Discovered exit to Factory (range 15) 4712 | -8/Storage | Lost 3 allies 4734 | -8/Storage | Entered Factory 4734 | -7/Factory | Accompanied by 1 ally 4734 | -7/Factory | Evolved 2 slots: Propulsion x1, Utility x1 4861 | -7/Factory | Lost 5 parts (1p3n1w) 5273 | -7/Factory | Fabricated Adv. Plasma Cannon (x2) 5306 | -7/Factory | Build established: Scavenger-Sprinter 5363 | -7/Factory | Discovered new exit (range 16) 5384 | -7/Factory | Identified exit to Lower Caves 5408 | -7/Factory | Fabricated Remote Datajack? 5435 | -7/Factory | Identified exit to Factory 5639 | -7/Factory | Build established: Hacker-Sprinter 5670 | -7/Factory | Entered another Factory area 5670 | -6/Factory | Evolved 2 slots: Propulsion x1, Utility x1 5735 | -6/Factory | Identified exit to Lower Caves 5830 | -6/Factory | Repaired Structural Scanner 5959 | -6/Factory | Identified exit to Factory 6044 | -6/Factory | Repaired VTOL Module 6158 | -6/Factory | Repaired Imp. VTOL Module 6280 | -6/Factory | Entered another Factory area 6280 | -5/Factory | Evolved 2 slots: Utility x2 6597 | -5/Factory | Discovered new exit (range 13) 6668 | -5/Factory | Lost 3 parts (1p2u) 6771 | -5/Factory | Repaired Broken VTOL Module? 6775 | -5/Factory | Discovered new exit (range 10) 6792 | -5/Factory | Entered Upper Caves 6896 | -5/Upper Caves | Attracted the attention of an 0b10 checkpoint 6903 | -5/Upper Caves | Learned Factory terminal intel 7002 | -5/Upper Caves | Discovered new exit (range 15) 7007 | -5/Upper Caves | Entered another Upper Caves area 7038 | -5/Upper Caves | Learned 4 Factory zone layouts 7093 | -5/Upper Caves | Discovered new exit (range 10) 7124 | -5/Upper Caves | Attracted the attention of an 0b10 outpost 7134 | -5/Upper Caves | Attracted the attention of an 0b10 checkpoint 7160 | -5/Upper Caves | Discovered new exit (range 11) 7175 | -5/Upper Caves | Entered Warlord 7186 | -5/Warlord | Discovered new exit (range 14) 7201 | -5/Warlord | System corruption cleaned by Quarantine Array 7259 | -5/Warlord | Received a Watcher feed algorithm from an ecstatic Tinkerer 7339 | -5/Warlord | Met Warlord 7364 | -5/Warlord | Warlord's base attacked by MAIN.C 7442 | -5/Warlord | Build established: Derelict-Mutant 7456 | -5/Warlord | Found Prototype Energy Cannon 7456 | -5/Warlord | Identified Vortex Cannon 7642 | -5/Warlord | Warlord forces counterattacked 7683 | -5/Warlord | Spotted Executioner 7684 | -5/Warlord | P-80 Master assimilated allied A7-KQ9(b) 7686 | -5/Warlord | Spotted Executioner 7690 | -5/Warlord | P-70 Sage assimilated allied IM-AI3(g) 7707 | -5/Warlord | Spotted Executioner 7711 | -5/Warlord | P-80 Master assimilated allied Z8-06M(g) 7711 | -5/Warlord | Spotted Z8-06M(g) 7736 | -5/Warlord | Opened side exit 7740 | -5/Warlord | Lost 9 allies 7758 | -5/Warlord | Entered Proximity Caves 7762 | -4/Proximity Caves | Learned Research terminal intel 7793 | -4/Proximity Caves | Learned location of 1 exit from Research 7834 | -4/Proximity Caves | Identified exit to Factory 7867 | -4/Proximity Caves | Attracted the attention of an 0b10 checkpoint 7898 | -4/Proximity Caves | Spotted B-86 Titan 7902 | -4/Proximity Caves | Entered Factory 7902 | -4/Factory | Evolved 2 slots: Power x1, Propulsion x1 7904 | -4/Factory | Loaded intel: 26 terminal locations 7943 | -4/Factory | Spotted B-86 Titan 8117 | -4/Factory | Discovered new exit (range 15) 8250 | -4/Factory | Build established: Derelict-Sprinter 8427 | -4/Factory | Identified exit to Research 8466 | -4/Factory | Entered Research 8466 | -3/Research | Accompanied by 1 ally 8466 | -3/Research | Evolved 2 slots: Utility x2 8467 | -3/Research | Identified exit to Research 8468 | -3/Research | Loaded intel: 25 terminal locations 8558 | -3/Research | Build established: Hacker-Sprinter 8632 | -3/Research | Fabricated B-60 Warrior? 8683 | -3/Research | Lost 4 allies 8842 | -3/Research | Lost 5 parts (3n1u1w) 8976 | -3/Research | Lost 3 parts (1p1n1u) 9035 | -3/Research | Lost 6 parts (1n4u1w) 9053 | -3/Research | System corruption reached 10% 9136 | -3/Research | Build established: Hacker-Mutant 9170 | -3/Research | Lost 3 parts (2n1u) 9216 | -3/Research | Search patrols dispatched 9321 | -3/Research | Found Fusion Bomb Launcher 9418 | -3/Research | Discovered exit to Research (range 19) 9468 | -3/Research | Imp. Hacking Suite fried by hacking feedback 9513 | -3/Research | Found Prototype Processor 9513 | -3/Research | Identified Spectral Analyzer 9529 | -3/Research | Entered another Research area 9529 | -2/Research | Warlord forces began assault on 0b10 9529 | -2/Research | Evolved 2 slots: Utility x2 9618 | -2/Research | Identified exit to Testing 9639 | -2/Research | Research machine network offline 9650 | -2/Research | Entered Testing 9657 | -2/Testing | Found Prototype Energy Cannon 9657 | -2/Testing | Identified Hpw. Disruptor Cannon 9671 | -2/Testing | Protovariant out of control (PH-A7EO8WV29E) 9671 | -2/Testing | Unleashed a protovariant (PH-A7EO8WV29E) 9700 | -2/Testing | Build established: Hacker-Sprinter 9712 | -2/Testing | Discovered new exit (range 5) 9851 | -2/Testing | Fabricated Quantum Reactor? 9875 | -2/Testing | Spotted Striker 9886 | -2/Testing | Identified exit to Access 9976 | -2/Testing | Local machine network offline 9992 | -2/Testing | Spotted Fortress 10007 | -2/Testing | Entered Access 10007 | -1/Access | Evolved 2 slots: Propulsion x1, Utility x1 10305 | -1/Access | Identified exit to Surface 10520 | -1/Access | Build established: Hacker-Ninja 10539 | -1/Access | Spotted B-99 Colossus 10571 | -1/Access | Spotted B-99 Colossus 10629 | -1/Access | Lost 3 parts (1n2u) 10700 | -1/Access | Energy Cycler disabled 10702 | -1/Access | Lost 3 parts (3u) 10731 | -1/Access | Spotted B-99 Colossus 10873 | *** | Escaped! Last Messages --------------- 10762_ R-10 Processor destroyed. 10764_ Acquired 106 matter. 10769_ Adv. System Restoration Module purges 1% system corruption (2%). 10770_ Dropped Impulse Thruster Array. 10770_ Acquired Field Propulsion Array. 10774_ System corrupted: Energy discharge (-35). 10788_ Connecting with Repair Station... 10798_ Acquired Q-thruster. 10799_ Adv. System Restoration Module purges 1% system corruption (1%). 10800_ Adv. System Restoration Module purges 1% system corruption (0%). 10801_ Dropped Adv. ECM Suite. 10802_ Acquired Exp. Q-thruster. 10807_ ALERT: Rogue bot located, Programmers report to Access Zone 1O. 10842_ O-32 Director uses terminal to summon reinforcements. 10842_ ALERT: Hostiles spotted, dispatching reinforcements to Terminal A006. 10842_ O-32 Director locks terminal. 10844_ Connecting with Terminal... 10845_ The Access Shell folds into the floor. 10872_ Terminal disabled. Map ----- +----------------------------------------------------+ | " ? ?????### ###?## #"" ?????? | | " ??##?#??# ###?## #"" *????? | | " ?#?????# " ##?### " #"" #???? | | " ????#?##""" ! #?#### """ #T +???? | | " ###??## """ ###??# """ #"" #???? | | " #?#?#?# " #?#?## " #"" #???? | | ##??#?# ###### #"" = #???? | | ##?#### #?##?# # #???? | | #################+###############/### #???? | | +???? | | ###/#???? | | ########## #####"#########+### #?? ??? | | # #???# ## ##???????? | | + #?#?# ## #??? ???? | | ##########??## ## #?? ?? ??? | | " ###?????#??### * ## ##???? ??? | | #?#??????????# ## #????????? | | " #??##????#???# ## #?? ????? | | ##?#?????###?##############"" #???????? | | #??##??#?##?#???#???###???### #????????? | | #??????????########## ####### ##???????? | | #????? ????" #?#######? | | #???? ???"?" #?# #? | | #####+####????????"?" #?# #? | | ? ????????? ??????"?" #?# ## | | ????????????????????" "@ ### #? | | ? ? ??? ?? ????????" "" ### ## | | ????????????????????" #?# ## | | ???????#????????????" p ### ## | | ????????????????????" """ "" p#?# #? | | ????? ??????????????" """T""" #?? ?# | | ????????????????????########## #######p ##? =?? | | ?????????????????????#????#??####?#### ##?? ?#? | | ????????????????????????#??????##?#?## #??? ?## | | ?????????????????????#????????##?????# #???#+#### | | ????????????????????????#???#??#?###?# ##??# + | | ???????????????????????????"""" ?#### #???# # | | ???????????????????????## ?????"??#?## ##### # | | ????????????????????????#?????""??##?# # | | ??????????????????????????? ?????????# + | | ???????????????????????????????? ?#?## ###### # | | ????????????????????????????????? #?## ##?#?# # | | ??????????????????????????????????#?## #?#### # | | ????????????????????????????????????## #?#### # | | ???????????????????????????????#????## #?#?## ##+ | | ??????????????????????????????????? ###### | | ????????????????????????????? ??????? #???#####+ | | ????????????????????????????????????#####????#?? | | ??????????????????????????????? ???? ??#?#?## | | ?????????????????????????????????? ??? ???#???? | +----------------------------------------------------+ Best States ------------- Heat Dissipation 71 Coolant Potential 100 Energy Generation 43 Energy Capacity 890 Matter Stores 300 Matter Capacity 300 Sight Range 24 Robot Scan Range 15 Terrain Scan Range 16 Terrain Scan Density 210 ECM Strength 2 Jamming Range 16 Cloak Strength 4 Power Amplification 30 Corruption Block 7 Armor Coverage 300 Propulsion Shielding 66 Phase Shifting 15 Evasion (%) 90 Target Analysis 6 Core Analysis 6 Recoil Reduction 3 Salvage Targeting 3 Offensive Hacking 32 Defensive Hacking 20 Item Schematics ----------------- Lyr. Light Armor Plating | -7/Factory | Hacked Sml. Storage Unit | -7/Factory | Hacked Centrium Light Armor Plating | -2/Testing | Archive Hdn. Centrium Heavy Treads | -2/Testing | Archive Robot Schematics ------------------ None Fabricated ------------ Adv. Plasma Cannon | x2 | -7/Factory | Preloaded Remote Datajack | x2 | -7/Factory | Preloaded B-60 Warrior | x3 | -3/Research | Preloaded Alien Tech Used ----------------- None Achievements -------------- Deadly Force No Signal Nope Rampage Challenges ------------ None Game ------ Seed ActiveScrapoidCoupler Manual? 0 Play Time 06:52:44 Cumulative 101.6 hours Start 2024.10.18 @ 22:10:16 End 2024.10.20 @ 16:10:10 Sessions 9 Manual Loads 0 Difficulty Rogue Special Mode None Game No. 35 Rogue 34 Adventurer 1 Explorer 0 Win Type 0 Total 2 Types 2/0/0/0/0/0/0/0/0 Lore% 27 Gallery% 48 Achievement% 41 Wizard Run 0 Options --------- Layout 0 ASCII 0 Keyboard 1 Movement Vi Keybinds 0 Fullscreen 2 Font 36/Terminus++ Map View 76x50 Zoom Use 0% Tactical HUD 1 Map Filters NONE Filters NONE Steam 1 RUN: 85c8e338-e8b2-4959-8350-52f4b5db2037